[Event "World Junior U20 Open 2018"]
[Site "Gebze"]
[Date "2018.09.11"]
[Round "7.53"]
[White "Secheres, Adrian-Simion"]
[Black "Rodrigue-Lemieux, Shawn"]
[Result "1-0"]
[ECO "E35"]
[WhiteElo "2408"]
[BlackElo "2250"]
[Annotator "ChessBase"]
[PlyCount "111"]
[EventDate "2018.09.05"]
[EventType "swiss"]
[EventCountry "TUR"]
[SourceTitle "playchess.com"]
[Source "ChessBase"]
[SourceQuality "1"]
[TimeControl "40/5400+30:1800+30"]

1. d4 {[%emt 0:00:30]} Nf6 {[%emt 0:00:30]} 2. c4 {[%emt 0:00:30]} e6 {[%emt 0:00:00]} 3. Nc3 {[%emt 0:00:30]} Bb4 {[%emt 0:00:00]} 4. Qc2 {[%emt 0:00:00]} d5 {[%emt 0:00:30]} 5. cxd5 {[%emt 0:00:00]} exd5 {[%emt 0:00:00]} 6. Bg5 {[%emt 0:00:30]} h6 {[%emt 0:05:00]} 7. Bh4 {[%emt 0:00:00]} c5 {[%emt 0:06:30]} 8. dxc5 {[%emt 0:00:00]} g5 {[%emt 0:01:30]} 9. Bg3 {[%emt 0:00:30]} Ne4 {[%emt 0:01:30]} 10. e3 {[%emt 0:00:00]} Qf6 {[%emt 0:06:30]} 11. Nf3 {[%emt 0:00:00]} Nc6 {[%emt 0:01:30]} 12. Bb5 {[%emt 0:13:30]} Nxc3 {[%emt 0:05:30]} 13. Bxc6+ {[%emt 0:01:30]} bxc6 {[%emt 0:00:30]} 14. a3 {[%emt 0:05:30]} Bf5 {[%emt 0:45:30]} 15. Qd2 {[%emt 0:03:30]} Bh3 {[%emt 0:03:11]} 16. Be5 {[%emt 0:12:30]} Qf5 {[%emt 0:00:06]} 17. Bxc3 {[%emt 0:05:30]} Bxg2 {[%emt 0:04:08]} 18. Nd4 {[%emt 0:01:30]} Bxc3 {[%emt 0:04:33]} 19. Qxc3 {[%emt 0:00:30]} Qe5 {[%emt 0:00:41]} 20. Rg1 {[%emt 0:00:30]} Qxh2 {[%emt 0:01:19]} 21. O-O-O {[%emt 0:00:30]} O-O {[%emt 0:06:08]} 22. f4 {[%emt 0:15:30]} Be4 {[%emt 0:02:54]} 23. fxg5 {[%emt 0:00:30]} h5 {[%emt 0:00:33]} 24. Qd2 {[%emt 0:08:30]} Qe5 {[%emt 0:01:41]} 25. Rdf1 {[%emt 0:09:30]} Bg6 {[%emt 0:01:08]} 26. Rf4 {[%emt 0:01:47]} Rac8 {[%emt 0:00:31]} 27. Rg3 {[%emt 0:10:30]} Rfe8 {[%emt 0:00:16]} 28. b3 {[%emt 0:01:25]} h4 {[%emt 0:00:55]} 29. Rh3 {[%emt 0:00:25]} Qxg5 {[%emt 0:00:43]} 30. Rfxh4 {[%emt 0:02:37]} Qg1+ {[%emt 0:00:06]} 31. Qd1 {[%emt 0:01:53]} Qf2 {[%emt 0:00:05]} 32. Ne2 {[%emt 0:03:27]} Rxe3 {[%emt 0:01:11]} 33. Rh8+ {[%emt 0:00:06]} Kg7 {[%emt 0:00:03]} 34. Qd4+ {[%emt 0:00:25]} f6 {[%emt 0:00:30]} 35. Rxe3 {[%emt 0:01:33]} Qe1+ {[%emt 0:00:39]} 36. Kb2 {[%emt 0:01:34]} Qb1+ {[%emt 0:00:09]} 37. Kc3 {[%emt 0:00:03]} Qa1+ {[%emt 0:00:03]} 38. Kb4 {[%emt 0:00:39]} a5+ {[%emt 0:01:34]} 39. Ka4 {[%emt 0:00:00]} Qxd4+ {[%emt 0:01:03]} 40. Nxd4 {[%emt 0:00:00]} Kxh8 {[%emt 0:00:00]} 41. Kxa5 {[%emt 0:04:36]} Be4 {[%emt 0:01:20]} 42. Kb6 {[%emt 0:01:30]} f5 {[%emt 0:00:30]} 43. a4 {[%emt 0:04:30]} f4 {[%emt 0:03:30]} 44. Rh3+ {[%emt 0:00:30]} Kg7 {[%emt 0:00:00]} 45. Ne6+ {[%emt 0:02:30]} Kf6 {[%emt 0:00:00]} 46. Nxf4 {[%emt 0:00:00]} d4 {[%emt 0:03:30]} 47. a5 {[%emt 0:01:00]} Ke5 {[%emt 0:05:55]} 48. Nd3+ {[%emt 0:01:30]} Bxd3 {[%emt 0:00:36]} 49. Rxd3 {[%emt 0:00:30]} Ke4 {[%emt 0:00:00]} 50. Rd1 {[%emt 0:00:30]} Rb8+ {[%emt 0:00:29]} 51. Kxc6 {[%emt 0:00:30]} Rxb3 {[%emt 0:00:30]} 52. Ra1 {[%emt 0:00:00]} d3 {[%emt 0:00:30]} 53. a6 {[%emt 0:00:00]} d2 {[%emt 0:00:45]} 54. a7 {[%emt 0:00:30]} Ra3 {[%emt 0:00:15]} 55. Rxa3 {[%emt 0:00:30]} d1=Q {[%emt 0:00:30]} 56. a8=Q {[%emt 0:00:00]} 1-0

[Event "World Junior U20 Open 2018"]
[Site "Gebze"]
[Date "2018.09.11"]
[Round "7.54"]
[White "Huber, Martin Christian"]
[Black "Nalbant, Tuna Onat"]
[Result "1-0"]
[ECO "E08"]
[WhiteElo "2390"]
[BlackElo "2241"]
[Annotator "NA"]
[PlyCount "109"]
[EventDate "2018.09.05"]
[EventType "swiss"]
[EventCountry "TUR"]
[SourceTitle "playchess.com"]
[Source "ChessBase"]
[SourceQuality "1"]
[TimeControl "40/5400+30:1800+30"]

1. Nf3 {[%emt 0:00:30]} d5 {[%emt 0:00:30]} 2. d4 {[%emt 0:00:00]} Nf6 {[%emt 0:00:30]} 3. c4 {[%emt 0:00:00]} e6 {[%emt 0:00:30]} 4. g3 {[%emt 0:00:30]} Be7 {[%emt 0:01:30]} 5. Bg2 {[%emt 0:00:30]} O-O {[%emt 0:00:30]} 6. O-O {[%emt 0:00:00]} c6 {[%emt 0:05:30]} 7. Qc2 {[%emt 0:02:00]} Nbd7 {[%emt 0:00:30]} 8. Rd1 {[%emt 0:01:30]} b6 {[%emt 0:01:30]} 9. b3 {[%emt 0:01:30]} Bb7 {[%emt 0:02:30]} 10. Nc3 {[%emt 0:00:30]} Rc8 {[%emt 0:02:30]} 11. e4 {[%emt 0:01:30]} dxe4 {[%emt 0:02:30]} 12. Nxe4 {[%emt 0:03:30]} Nxe4 {[%emt 0:08:30]} 13. Qxe4 {[%emt 0:00:00]} Re8 {[%emt 0:06:30]} 14. Bf4 {[%emt 0:08:00] LiveBook: 5 Games E08: Closed Catalan: Main Line: 7 Qc2} Nf6 {[%emt 0:04:30]} 15. Qc2 {[%emt 0:02:30]} Bd6 {[%emt 0:04:30]} 16. Bxd6 {[%emt 0:04:30]} Qxd6 {[%emt 0:00:00]} 17. c5 $146 {[%emt 0:00:30]} ({Predecessor:} 17. Ne5 Qe7 18. c5 Nd5 19. Rac1 f6 20. Nf3 Rc7 21. a3 b5 {1-0 (60) Simic,R (2402)-Konjevic,D (2351) Budva 2003}) 17... Qc7 {[%emt 0:06:00]} 18. Ne5 {[%emt 0:03:30]} Nd7 {[%emt 0:10:30]} 19. Nc4 {[%emt 0:06:30]} Rb8 {[%emt 0:07:30]} 20. Nd6 {[%emt 0:04:30]} Red8 {[%emt 0:02:30]} 21. b4 {[%emt 0:11:30]} Nf6 {[%emt 0:04:30]} 22. Rac1 {[%emt 0:04:30]} Bc8 {[%emt 0:07:30]} 23. Qa4 {[%emt 0:12:30]} b5 {[%emt 0:00:30]} 24. Qb3 {[%emt 0:00:30]} Nd5 {[%emt 0:02:57]} 25. f4 {[%emt 0:04:30]} a5 {[%emt 0:04:51]} 26. a3 {[%emt 0:01:30]} g6 {[%emt 0:04:49]} 27. Re1 {[%emt 0:02:30]} Ne7 {[%emt 0:02:50]} 28. Rcd1 {[%emt 0:04:30]} axb4 {[%emt 0:00:47]} 29. axb4 {[%emt 0:00:30]} Nd5 {[%emt 0:03:31]} 30. Bxd5 {[%emt 0:03:29]} exd5 {[%emt 0:00:40]} 31. Ne8 {[%emt 0:01:15]} Qb7 {[%emt 0:00:39]} 32. Qe3 {[%emt 0:02:58]} Bf5 {[%emt 0:02:13]} 33. Nf6+ {[%emt 0:00:29]} Kf8 {[%emt 0:01:03]} 34. Qe5 {[%emt 0:02:49]} Be6 {[%emt 0:00:15]} 35. Nxh7+ {[%emt 0:00:46]} Kg8 {[%emt 0:00:46]} 36. Nf6+ {[%emt 0:00:50]} Kf8 {[%emt 0:00:23]} 37. g4 {[%emt 0:01:07]} Qc8 {[%emt 0:00:42]} 38. Qg5 {[%emt 0:02:38]} Kg7 {[%emt 0:00:31]} 39. f5 {[%emt 0:03:26]} Bxf5 {[%emt 0:00:44]} 40. gxf5 {[%emt 0:00:00]} Qxf5 {[%emt 0:00:00]} 41. Nh5+ {[%emt 0:01:13]} Kh7 {[%emt 0:04:19]} 42. Qxf5 {[%emt 0:00:30]} gxf5 {[%emt 0:00:00]} 43. Rf1 {[%emt 0:01:30]} Ra8 {[%emt 0:04:00]} 44. Rxf5 {[%emt 0:06:30]} Ra4 {[%emt 0:04:30]} 45. Ng3 {[%emt 0:00:30]} Rxb4 {[%emt 0:00:30]} 46. Rxf7+ {[%emt 0:00:00]} Kg8 {[%emt 0:00:41]} 47. Rc7 $18 {[%emt 0:02:00]} Ra8 {[%emt 0:00:40]} 48. Rxc6 {[%emt 0:01:30]} Rb2 {[%emt 0:01:09]} 49. Rd6 {[%emt 0:04:30]} Raa2 {[%emt 0:01:47]} 50. Nf1 {[%emt 0:00:30]} b4 {[%emt 0:00:30]} 51. Rxd5 {[%emt 0:02:30]} b3 {[%emt 0:00:26]} 52. c6 {[%emt 0:00:37]} Rc2 {[%emt 0:05:20]} 53. Rc5 {[%emt 0:00:35]} Rxc5 {[%emt 0:01:13]} 54. dxc5 {[%emt 0:00:18]} Rc2 {[%emt 0:00:00]} 55. c7 {[%emt 0:00:30]} 1-0

[Event "World Junior U20 Open 2018"]
[Site "Gebze"]
[Date "2018.09.11"]
[Round "7.55"]
[White "Tifferet, Shaked"]
[Black "Arcuti, Davide"]
[Result "0-1"]
[ECO "E16"]
[WhiteElo "2299"]
[BlackElo "2356"]
[Annotator "NA"]
[PlyCount "82"]
[EventDate "2018.09.05"]
[EventType "swiss"]
[EventCountry "TUR"]
[SourceTitle "playchess.com"]
[Source "ChessBase"]
[SourceQuality "1"]
[TimeControl "40/5400+30:1800+30"]

1. d4 {[%emt 0:00:30]} Nf6 {[%emt 0:00:30]} 2. c4 {[%emt 0:00:30]} e6 {[%emt 0:00:00]} 3. g3 {[%emt 0:00:00]} d5 {[%emt 0:00:00]} 4. Bg2 {[%emt 0:00:00]} Bb4+ {[%emt 0:00:30]} 5. Nd2 {[%emt 0:00:30]} O-O {[%emt 0:03:30]} 6. Ngf3 {[%emt 0:00:30]} b6 {[%emt 0:03:30]} 7. O-O {[%emt 0:01:30]} Bb7 {[%emt 0:01:30]} 8. Ne5 {[%emt 0:00:30]} Re8 {[%emt 0:08:30] E16: Queen's Indian: 4 g3 Bb7 5 Bg2 Bb4+} (8... Bd6 9. cxd5 exd5 10. Ndc4 Be7 11. Bf4 Ne4 12. Nd2 Ng5 13. Bxg5 Bxg5 14. Rc1 Re8 15. e3 c5 16. dxc5 Rxe5 17. f4 Nc6 18. fxe5 Nxe5 {½-½ (44) Xu,X (2574)-Bu,X (2725) China 2018}) 9. a3 {[%emt 0:00:30]} Bf8 {[%emt 0:05:30]} 10. b4 {[%emt 0:00:30]} Nbd7 {[%emt 0:08:30]} 11. Bb2 {[%emt 0:00:00]} c5 {[%emt 0:10:30]} 12. bxc5 {[%emt 0:06:00]} bxc5 {[%emt 0:01:30]} 13. Nxd7 {[%emt 0:12:30]} Nxd7 {[%emt 0:00:30]} 14. Rb1 {[%emt 0:23:30] [#]} Nb6 $146 {[%emt 0:08:30]} ({Predecessor:} 14... Rb8 15. cxd5 Bxd5 16. Bxd5 exd5 17. dxc5 Nxc5 {½-½ (32) Virovlansky,S (2445)-Swiercz,D (2585) Golden Sands 2012}) 15. Re1 {[%emt 0:20:30]} Rc8 {[%emt 0:05:30]} 16. dxc5 {[%emt 0:01:30]} Bxc5 {[%emt 0:01:30]} 17. e3 {[%emt 0:01:30]} Bf8 {[%emt 0:03:30]} 18. h4 {[%emt 0:04:30]} Ba8 {[%emt 0:03:30]} 19. cxd5 {[%emt 0:01:30]} Bxd5 {[%emt 0:01:30]} 20. e4 {[%emt 0:06:22]} Ba8 {[%emt 0:01:30]} 21. Rc1 {[%emt 0:01:26]} Rxc1 {[%emt 0:01:30]} 22. Bxc1 {[%emt 0:00:40]} Qd4 {[%emt 0:05:30]} 23. Qg4 {[%emt 0:04:07]} Nd7 {[%emt 0:06:27]} 24. Nf3 {[%emt 0:01:08]} Qc3 $15 {[%emt 0:01:18]} 25. Bd2 {[%emt 0:02:03]} Qxa3 {[%emt 0:01:26]} 26. e5 {[%emt 0:00:15]} Qd3 {[%emt 0:01:21]} 27. Bg5 {[%emt 0:07:20]} Rb8 {[%emt 0:04:38]} 28. h5 {[%emt 0:02:59]} Rb4 {[%emt 0:00:36]} 29. Bf4 {[%emt 0:00:18]} h6 {[%emt 0:01:08]} 30. Nh4 {[%emt 0:01:15]} Bxg2 {[%emt 0:00:54]} 31. Nxg2 {[%emt 0:00:21]} Rb1 {[%emt 0:03:18]} 32. Kh2 {[%emt 0:00:12]} Rxe1 {[%emt 0:02:34]} 33. Nxe1 {[%emt 0:00:30]} Qf1 {[%emt 0:00:30]} 34. Ng2 {[%emt 0:00:30]} Qxf2 {[%emt 0:00:30]} 35. Be3 {[%emt 0:00:30]} Nxe5 {[%emt 0:00:30]} 36. Qe4 {[%emt 0:00:30]} Qf6 {[%emt 0:00:30]} 37. Nf4 {[%emt 0:00:30]} Ng4+ {[%emt 0:00:30]} 38. Kh3 {[%emt 0:00:30]} Nxe3 {[%emt 0:00:30]} 39. Qxe3 {[%emt 0:00:30]} a5 {[%emt 0:00:30]} 40. Qb3 {[%emt 0:00:30]} Qf5+ {[%emt 0:00:00]} 41. Kg2 {[%emt 0:04:34]} Bd6 {[%emt 0:05:20]} 0-1

[Event "World Junior U20 Open 2018"]
[Site "Gebze"]
[Date "2018.09.11"]
[Round "7.58"]
[White "Cirovic, Miroljub"]
[Black "Pigeat, Alexandre"]
[Result "0-1"]
[ECO "D10"]
[WhiteElo "2181"]
[BlackElo "2347"]
[Annotator "NA"]
[PlyCount "78"]
[EventDate "2018.09.05"]
[EventType "swiss"]
[EventCountry "TUR"]
[SourceTitle "playchess.com"]
[Source "ChessBase"]
[SourceQuality "1"]
[TimeControl "40/5400+30:1800+30"]

1. d4 {[%emt 0:00:30]} d5 {[%emt 0:00:30]} 2. c4 {[%emt 0:00:00]} c6 {[%emt 0:00:30]} 3. cxd5 {[%emt 0:00:00]} cxd5 {[%emt 0:00:30]} 4. Bf4 {[%emt 0:00:00]} Nc6 {[%emt 0:00:00]} 5. Nc3 {[%emt 0:00:00]} Nf6 {[%emt 0:01:00]} 6. e3 {[%emt 0:00:30]} a6 {[%emt 0:00:30]} 7. Bd3 {[%emt 0:00:30]} Bg4 {[%emt 0:05:30]} 8. Nge2 {[%emt 0:01:30]} e6 {[%emt 0:00:30]} 9. O-O {[%emt 0:00:30]} Bd6 {[%emt 0:01:30]} 10. f3 {[%emt 0:00:00] D10: Slav Defence: 3 cxd5 (without early Nf3) and 3 Nc3} Bh5 {[%emt 0:00:30]} 11. Na4 {[%emt 0:04:00]} O-O {[%emt 0:08:30]} 12. Rc1 {[%emt 0:03:30]} Qe7 {[%emt 0:06:30]} 13. Bxd6 {[%emt 0:05:30]} Qxd6 {[%emt 0:00:30]} 14. Nc5 {[%emt 0:02:30]} Rab8 {[%emt 0:12:30]} 15. Qa4 {[%emt 0:01:30]} Ne7 {[%emt 0:11:30] [#]} 16. b4 $146 {[%emt 0:08:30]} ({Predecessor:} 16. Rc3 Bg6 17. Nf4 e5 18. dxe5 Qxe5 {½-½ (30) Sargissian,G (2666)-Oleksienko,M (2554) Dubai 2013}) 16... Bg6 {[%emt 0:01:30]} 17. Qb3 {[%emt 0:02:30]} e5 {[%emt 0:04:30]} 18. dxe5 {[%emt 0:01:30]} Qxe5 {[%emt 0:00:30]} 19. Bxg6 {[%emt 0:00:00]} Nxg6 {[%emt 0:00:30]} 20. Qc3 {[%emt 0:02:00]} Qg5 {[%emt 0:03:30]} 21. Ng3 {[%emt 0:00:30]} Rfe8 {[%emt 0:39:30]} 22. Ne2 {[%emt 0:10:30]} Rf8 {[%emt 0:00:30]} 23. Ng3 {[%emt 0:00:30]} Rfe8 {[%emt 0:00:30]} 24. f4 {[%emt 0:00:00]} Qg4 {[%emt 0:00:00]} 25. Qd4 {[%emt 0:07:00]} h5 {[%emt 0:00:00]} 26. f5 {[%emt 0:16:30]} Ne5 {[%emt 0:00:00]} 27. Rf4 {[%emt 0:00:30]} Qg5 {[%emt 0:00:00]} 28. Rcf1 {[%emt 0:01:30]} Nc6 {[%emt 0:00:00]} 29. Qd2 {[%emt 0:00:30]} h4 {[%emt 0:00:00]} 30. Ne2 {[%emt 0:01:30]} Nh5 {[%emt 0:00:00]} 31. R4f3 {[%emt 0:00:30]} Ne5 {[%emt 0:00:00]} 32. Qxd5 {[%emt 0:02:30]} Nxf3+ {[%emt 0:00:00]} 33. Rxf3 {[%emt 0:00:30]} Rbd8 $19 {[%emt 0:00:00]} 34. Qb3 {[%emt 0:00:30]} Rd2 {[%emt 0:00:00]} 35. Rf2 {[%emt 0:02:30]} Rxe3 {[%emt 0:00:00]} 36. Qc4 {[%emt 0:00:30]} Qe7 {[%emt 0:00:00]} 37. f6 {[%emt 0:04:30]} Nxf6 {[%emt 0:00:00]} 38. Nf4 {[%emt 0:00:30]} Rd1+ {[%emt 0:00:00]} 39. Rf1 {[%emt 0:00:30]} Rxf1+ {[%emt 0:00:00]} 0-1

[Event "World Junior U20 Open 2018"]
[Site "Gebze"]
[Date "2018.09.11"]
[Round "7.60"]
[White "Shailesh, Dravid"]
[Black "Kwon, Sehyun"]
[Result "1-0"]
[ECO "B27"]
[WhiteElo "2325"]
[BlackElo "2129"]
[Annotator "NA"]
[PlyCount "81"]
[EventDate "2018.09.05"]
[EventType "swiss"]
[EventCountry "TUR"]
[SourceTitle "playchess.com"]
[Source "ChessBase"]
[SourceQuality "1"]
[TimeControl "40/5400+30:1800+30"]

1. e4 {[%emt 0:00:30]} c5 {[%emt 0:00:30]} 2. Nf3 {[%emt 0:00:30]} g6 {[%emt 0:00:30]} 3. h4 {[%emt 0:01:30]} Bg7 {[%emt 0:09:30] B27: Sicilian: 2 Nf3, unusual Black 2nd moves} 4. h5 {[%emt 0:00:30]} Nc6 {[%emt 0:01:30]} 5. Bc4 {[%emt 0:01:30]} e6 {[%emt 0:03:30]} 6. Nc3 {[%emt 0:00:00]} Nge7 {[%emt 0:17:30]} 7. h6 {[%emt 0:02:00]} (7. d3 d5 8. Bb5 d4 9. Bxc6+ Nxc6 10. Ne2 e5 {½-½ (64) Vachier Lagrave,M (2819)-Nakamura,H (2791) chess.com INT 2016}) 7... Bf6 {[%emt 0:02:30]} 8. Qe2 {[%emt 0:02:30]} d6 $146 {[%emt 0:07:30]} ({Predecessor:} 8... O-O 9. e5 Bh8 10. d3 a6 11. Bf4 Nf5 12. Ne4 Nxe5 13. Bxe5 Bxe5 14. Nxe5 {1-0 (40) Bravo Lutz,S-Prosch,S Neumuenster 1999}) 9. d3 {[%emt 0:01:30]} O-O {[%emt 0:02:30]} 10. Bf4 {[%emt 0:03:30]} Bh8 {[%emt 0:16:30]} 11. O-O {[%emt 0:05:30]} a6 {[%emt 0:01:30]} 12. a4 {[%emt 0:00:30]} Qc7 {[%emt 0:01:30]} 13. Rae1 {[%emt 0:06:30]} Bd7 {[%emt 0:08:30]} 14. Bg5 {[%emt 0:03:30]} Rfe8 {[%emt 0:00:30]} 15. Nh2 {[%emt 0:05:30]} Nd4 {[%emt 0:02:30]} 16. Qd2 {[%emt 0:00:30]} b5 {[%emt 0:02:43]} 17. Ba2 {[%emt 0:00:30]} Kf8 {[%emt 0:04:06]} 18. Ng4 {[%emt 0:01:30]} Ng8 {[%emt 0:00:11]} 19. Ne2 {[%emt 0:03:30]} (19. e5 $5 {[%cal Re5d6]}) 19... e5 {[%emt 0:03:20]} (19... f6 $11) 20. Ne3 {[%emt 0:00:30]} Ne6 {[%emt 0:06:11]} 21. Nd5 {[%emt 0:01:30]} Qc6 {[%emt 0:01:20]} 22. Bh4 {[%emt 0:00:00]} c4 {[%emt 0:02:25]} 23. dxc4 {[%emt 0:06:00]} bxc4 {[%emt 0:00:42]} 24. Ne3 {[%emt 0:00:30]} Bf6 {[%emt 0:01:54]} 25. Bg3 {[%emt 0:01:30]} Nxh6 {[%emt 0:00:34]} 26. Nxc4 {[%emt 0:00:30]} Kg7 {[%emt 0:01:40]} 27. f4 {[%emt 0:00:30]} Ng4 {[%emt 0:01:09]} 28. Nxd6 {[%emt 0:01:30]} Qc5+ {[%emt 0:01:12]} 29. Kh1 {[%emt 0:00:00]} Rf8 {[%emt 0:00:02]} 30. f5 {[%emt 0:03:00]} Bg5 {[%emt 0:00:28]} 31. Qd3 {[%emt 0:00:30]} Nd4 {[%emt 0:00:31]} 32. Bxe5+ {[%emt 0:03:30]} Qxe5 {[%emt 0:01:02]} 33. Qxd4 {[%emt 0:00:00]} Bxa4 {[%emt 0:00:00]} 34. fxg6 {[%emt 0:02:00]} Qxd4 {[%emt 0:00:29]} 35. Nxd4 {[%emt 0:00:30]} hxg6 {[%emt 0:00:26]} 36. Nxf7 {[%emt 0:00:30]} Rh8+ {[%emt 0:00:33]} 37. Nxh8 {[%emt 0:00:30]} Rxh8+ {[%emt 0:00:10]} 38. Kg1 {[%emt 0:00:30]} Bh4 {[%emt 0:00:46]} 39. Ne6+ {[%emt 0:01:30]} Kh6 {[%emt 0:00:10]} 40. Rf3 {[%emt 0:00:00]} g5 $18 {[%emt 0:00:00]} 41. g3 {[%emt 0:00:00]} 1-0

[Event "World Junior U20 Open 2018"]
[Site "Gebze"]
[Date "2018.09.11"]
[Round "7.63"]
[White "Zlatin, Alexander"]
[Black "Liyanage, Ranindu Dilshan"]
[Result "1/2-1/2"]
[ECO "B21"]
[WhiteElo "2312"]
[BlackElo "1989"]
[Annotator "NA"]
[PlyCount "44"]
[EventDate "2018.09.05"]
[EventType "swiss"]
[EventCountry "TUR"]
[SourceTitle "playchess.com"]
[Source "ChessBase"]
[SourceQuality "1"]
[TimeControl "40/5400+30:1800+30"]

1. e4 {[%emt 0:00:30]} c5 {[%emt 0:00:30]} 2. d4 {[%emt 0:00:00]} cxd4 {[%emt 0:00:00]} 3. c3 {[%emt 0:00:00]} dxc3 {[%emt 0:02:00]} 4. Nxc3 {[%emt 0:00:00]} Nc6 {[%emt 0:00:00]} 5. Bc4 {[%emt 0:00:00]} d6 {[%emt 0:00:00]} 6. Nf3 {[%emt 0:00:30]} a6 {[%emt 0:00:00]} 7. O-O {[%emt 0:01:30]} Nf6 {[%emt 0:00:00]} 8. h3 {[%emt 0:01:30]} e6 {[%emt 0:00:30]} 9. Qe2 {[%emt 0:02:30]} Be7 {[%emt 0:05:30]} 10. Rd1 {[%emt 0:00:30]} b5 {[%emt 0:09:30]} 11. Bb3 {[%emt 0:02:30]} Bd7 {[%emt 0:00:30]} 12. Bf4 $1 {[%emt 0:10:30]} b4 {[%emt 0:12:30]} 13. Na4 {[%emt 0:03:30]} Qb8 {[%emt 0:10:30]} 14. e5 {[%emt 0:12:30]} dxe5 {[%emt 0:04:30]} 15. Nxe5 $11 {[%emt 0:00:00]} Nxe5 {[%emt 0:10:30]} 16. Bxe5 {[%emt 0:04:00]} Qb5 {[%emt 0:05:30]} 17. Qe3 {[%emt 0:00:30]} O-O {[%emt 0:05:30]} 18. Bxf6 {[%emt 0:14:30]} Bxf6 {[%emt 0:03:30]} 19. Nb6 {[%emt 0:01:30]} Bg5 {[%emt 0:01:30]} 20. Qd4 {[%emt 0:00:00]} Bf6 {[%emt 0:01:30]} 21. Qe3 {[%emt 0:00:00]} Bg5 {[%emt 0:00:30]} 22. Qd4 {[%emt 0:01:30]} Bf6 {[%emt 0:00:00]} 1/2-1/2

[Event "World Junior U20 Open 2018"]
[Site "Gebze"]
[Date "2018.09.11"]
[Round "7.64"]
[White "Akdogan, Alperen"]
[Black "Ozsakallioglu, Okan"]
[Result "0-1"]
[ECO "E17"]
[WhiteElo "2278"]
[BlackElo "1955"]
[Annotator "NA"]
[PlyCount "56"]
[EventDate "2018.09.05"]
[EventType "swiss"]
[EventCountry "TUR"]
[SourceTitle "playchess.com"]
[Source "ChessBase"]
[SourceQuality "1"]
[TimeControl "40/5400+30:1800+30"]

1. d4 {[%emt 0:00:30]} Nf6 {[%emt 0:00:30]} 2. Nf3 {[%emt 0:00:00]} e6 {[%emt 0:00:00]} 3. c4 {[%emt 0:00:00]} b6 {[%emt 0:00:00]} 4. g3 {[%emt 0:00:30]} Bb7 {[%emt 0:00:30]} 5. Bg2 {[%emt 0:00:30]} Be7 {[%emt 0:00:00]} 6. O-O {[%emt 0:00:00]} O-O {[%emt 0:00:00]} 7. Re1 {[%emt 0:00:00]} Ne4 {[%emt 0:00:00] E17: Queen's Indian: 4 g3 Bb7 5 Bg2 Be7} 8. Nfd2 {[%emt 0:00:30]} d5 {[%emt 0:01:00]} 9. Nxe4 {[%emt 0:00:30]} dxe4 {[%emt 0:00:00]} 10. Nc3 {[%emt 0:03:30]} f5 {[%emt 0:01:00]} 11. Be3 {[%emt 0:03:30]} c5 $146 {[%emt 0:02:30]} ({Predecessor:} 11... Nc6 12. Qd2 Bf6 13. Rad1 Qe7 14. Nb5 Rad8 15. Qc3 {0-1 (26) Bhat,V (2473)-Onischuk,A (2699) Montreal 2009}) 12. dxc5 {[%emt 0:09:30]} bxc5 {[%emt 0:00:30]} 13. Qb3 {[%emt 0:23:30]} Qc8 {[%emt 0:02:30]} 14. Rad1 {[%emt 0:03:30]} Nc6 {[%emt 0:01:30]} 15. Nb5 {[%emt 0:15:30]} e5 {[%emt 0:04:30]} 16. Qa3 {[%emt 0:19:44]} (16. Nd6 $11 Bxd6 17. Rxd6) 16... a6 {[%emt 0:00:30]} 17. Nd6 {[%emt 0:04:44]} Bxd6 {[%emt 0:00:30]} 18. Rxd6 {[%emt 0:00:02]} Nd4 {[%emt 0:00:00]} 19. Qa5 {[%emt 0:08:52]} f4 {[%emt 0:04:00]} 20. Bxd4 {[%emt 0:00:02]} exd4 {[%emt 0:00:00]} 21. b4 $1 {[%emt 0:03:52]} fxg3 {[%emt 0:03:00]} 22. fxg3 {[%emt 0:00:16]} Qf5 {[%emt 0:00:30]} 23. Rf1 {[%emt 0:01:04]} Qg5 {[%emt 0:00:00]} 24. Qxc5 {[%emt 0:01:42]} Qe3+ {[%emt 0:00:00]} 25. Kh1 {[%emt 0:00:05]} Rxf1+ {[%emt 0:00:30]} 26. Bxf1 {[%emt 0:00:05]} Rf8 {[%emt 0:00:00]} 27. Qh5 {[%emt 0:01:01]} Qc1 {[%emt 0:01:00]} 28. Qh3 {[%emt 0:01:01]} Rxf1+ {[%emt 0:00:00]} 0-1